[Event "Titled Tuesday Blitz April 12 Early 2022"]
[White "Delorme, Alban"]
[Black "Padmini, Rout"]
[WhiteFideId "623636"]
[BlackFideId "5029295"]
[WhiteElo "2197"]
[BlackElo "2181"]
[Result "1-0"]
[Round "03"]
[TimeControl "180+1"]
[Date "2022.04.13"]
[WhiteClock "0:00:06"]
[BlackClock "0:00:02"]

1. e4 {[%clk 0:03:00]}  e5 {[%clk 0:02:59]} 2. Nf3 {[%clk 0:03:01]}  Nc6 {[%clk 0:03:00]} 3. Bc4 {[%clk 0:03:01]}  Nf6 {[%clk 0:02:59]} 4. d4 {[%clk 0:03:01]}  exd4 {[%clk 0:02:51]} 5. e5 {[%clk 0:03:01]}  d5 {[%clk 0:02:50]} 6. Bb5 {[%clk 0:03:02]}  Ne4 {[%clk 0:02:44]} 7. Nxd4 {[%clk 0:03:02]}  Bd7 {[%clk 0:02:44]} 8. Bxc6 {[%clk 0:03:03]}  bxc6 {[%clk 0:02:44]} 9. O-O {[%clk 0:03:03]}  f5 {[%clk 0:02:12]} 10. e6 {[%clk 0:02:54]}  Bc8 {[%clk 0:02:11]} 11. Nxc6 {[%clk 0:02:48]}  Qd6 {[%clk 0:02:11]} 12. Nd4 {[%clk 0:02:39]}  c5 {[%clk 0:02:09]} 13. Nb5 {[%clk 0:02:35]}  Qb6 {[%clk 0:02:09]} 14. Qxd5 {[%clk 0:02:09]}  Rb8 {[%clk 0:02:05]} 15. Qxf5 {[%clk 0:02:05]}  Nf6 {[%clk 0:01:41]} 16. N1c3 {[%clk 0:01:53]}  Bxe6 {[%clk 0:01:39]} 17. Qe5 {[%clk 0:01:18]}  Kf7 {[%clk 0:01:29]} 18. Qc7+ {[%clk 0:01:15]}  Qxc7 {[%clk 0:01:28]} 19. Nxc7 {[%clk 0:01:16]}  Bc4 {[%clk 0:01:28]} 20. Rd1 {[%clk 0:00:54]}  Be7 {[%clk 0:00:57]} 21. b3 {[%clk 0:00:51]}  Rhc8 {[%clk 0:00:55]} 22. N7d5 {[%clk 0:00:46]}  Nxd5 {[%clk 0:00:45]} 23. Nxd5 {[%clk 0:00:44]}  Bxd5 {[%clk 0:00:44]} 24. Rxd5 {[%clk 0:00:44]}  c4 {[%clk 0:00:43]} 25. Bf4 {[%clk 0:00:28]}  Rb7 {[%clk 0:00:42]} 26. Rad1 {[%clk 0:00:20]}  cxb3 {[%clk 0:00:40]} 27. cxb3 {[%clk 0:00:21]}  h6 {[%clk 0:00:27]} 28. g3 {[%clk 0:00:19]}  Rc6 {[%clk 0:00:20]} 29. Rd7 {[%clk 0:00:18]}  Rxd7 {[%clk 0:00:19]} 30. Rxd7 {[%clk 0:00:19]}  Ra6 {[%clk 0:00:18]} 31. Kg2 {[%clk 0:00:12]}  Ke6 {[%clk 0:00:17]} 32. Rd2 {[%clk 0:00:12]}  g5 {[%clk 0:00:17]} 33. Be3 {[%clk 0:00:12]}  Bf6 {[%clk 0:00:17]} 34. Kf3 {[%clk 0:00:09]}  Ra5 {[%clk 0:00:17]} 35. g4 {[%clk 0:00:09]}  a6 {[%clk 0:00:17]} 36. Re2 {[%clk 0:00:09]}  Kf7 {[%clk 0:00:15]} 37. a4 {[%clk 0:00:06]}  Rd5 {[%clk 0:00:15]} 38. Ke4 {[%clk 0:00:06]}  Rd1 {[%clk 0:00:14]} 39. Rd2 {[%clk 0:00:05]}  Rb1 {[%clk 0:00:14]} 40. Rd3 {[%clk 0:00:05]}  Ke6 {[%clk 0:00:13]} 41. Bd4 {[%clk 0:00:05]}  Be7 {[%clk 0:00:13]} 42. Re3 {[%clk 0:00:02]}  Bd6 {[%clk 0:00:10]} 43. Kd3+ {[%clk 0:00:01]}  Kd5 {[%clk 0:00:11]} 44. Kc2 {[%clk 0:00:02]}  Rg1 {[%clk 0:00:10]} 45. Rd3 {[%clk 0:00:02]}  Rxg4 {[%clk 0:00:09]} 46. Be3+ {[%clk 0:00:03]}  Ke6 {[%clk 0:00:09]} 47. Kc3 {[%clk 0:00:03]}  Rh4 {[%clk 0:00:09]} 48. Rd4 {[%clk 0:00:02]}  Rxh2 {[%clk 0:00:09]} 49. Re4+ {[%clk 0:00:02]}  Kd5 {[%clk 0:00:08]} 50. Re8 {[%clk 0:00:02]}  Be5+ {[%clk 0:00:08]} 51. Kc2 {[%clk 0:00:02]}  Rh4 {[%clk 0:00:08]} 52. Kd3 {[%clk 0:00:02]}  Rh1 {[%clk 0:00:08]} 53. Ra8 {[%clk 0:00:02]}  g4 {[%clk 0:00:03]} 54. Rxa6 {[%clk 0:00:03]}  h5 {[%clk 0:00:03]} 55. Ra5+ {[%clk 0:00:02]}  Ke6 {[%clk 0:00:03]} 56. Ra6+ {[%clk 0:00:02]}  Kd5 {[%clk 0:00:04]} 57. Rh6 {[%clk 0:00:03]}  h4 {[%clk 0:00:04]} 58. Ke2 {[%clk 0:00:03]}  h3 {[%clk 0:00:04]} 59. Rh5 {[%clk 0:00:04]}  Ke4 {[%clk 0:00:03]} 60. Bd2 {[%clk 0:00:03]}  h2 {[%clk 0:00:03]} 61. Rh4 {[%clk 0:00:04]}  Rg1 {[%clk 0:00:03]} 62. f3+ {[%clk 0:00:03]}  Kd5 {[%clk 0:00:03]} 63. fxg4 {[%clk 0:00:03]}  h1=Q {[%clk 0:00:03]} 64. Rxh1 {[%clk 0:00:03]}  Rxh1 {[%clk 0:00:04]} 65. Kf3 {[%clk 0:00:02]}  Rh2 {[%clk 0:00:03]} 66. Bf4 {[%clk 0:00:02]}  Bxf4 {[%clk 0:00:02]} 67. Kxf4 {[%clk 0:00:03]}  Rb2 {[%clk 0:00:02]} 68. Kf5 {[%clk 0:00:03]}  Rxb3 {[%clk 0:00:03]} 69. g5 {[%clk 0:00:04]}  Rf3+ {[%clk 0:00:03]} 70. Kg6 {[%clk 0:00:04]}  Ke6 {[%clk 0:00:03]} 71. a5 {[%clk 0:00:04]}  Ra3 {[%clk 0:00:03]} 72. Kh7 {[%clk 0:00:04]}  Rxa5 {[%clk 0:00:03]} 73. g6 {[%clk 0:00:05]}  Rh5+ {[%clk 0:00:02]} 74. Kg8 {[%clk 0:00:06]}  Kf6 {[%clk 0:00:02]} 75. g7 {[%clk 0:00:06]} 1-0


[Site "https://www.chess.com"]

[Event "Titled Tuesday Blitz April 12 Early 2022"]
[White "Devaev, Alexander"]
[Black "Petrova, Irina"]
[WhiteFideId "4169395"]
[BlackFideId "14124122"]
[WhiteElo "2185"]
[BlackElo "1993"]
[Result "1-0"]
[Round "03"]
[TimeControl "180+1"]
[Date "2022.04.13"]
[WhiteClock "0:01:16"]
[BlackClock "0:01:19"]

1. Nf3 {[%clk 0:02:02]}  d6 {[%clk 0:03:00]} 2. d4 {[%clk 0:01:57]}  g6 {[%clk 0:03:01]} 3. c4 {[%clk 0:01:58]}  Bg7 {[%clk 0:03:00]} 4. Nc3 {[%clk 0:01:58]}  Nc6 {[%clk 0:03:01]} 5. h3 {[%clk 0:01:58]}  Nf6 {[%clk 0:03:00]} 6. e4 {[%clk 0:01:58]}  O-O {[%clk 0:02:54]} 7. Bg5 {[%clk 0:01:58]}  h6 {[%clk 0:02:39]} 8. Be3 {[%clk 0:01:56]}  e5 {[%clk 0:02:38]} 9. d5 {[%clk 0:01:57]}  Ne7 {[%clk 0:02:37]} 10. g4 {[%clk 0:01:57]}  Nd7 {[%clk 0:02:30]} 11. Rg1 {[%clk 0:01:57]}  a5 {[%clk 0:02:25]} 12. h4 {[%clk 0:01:57]}  Nc5 {[%clk 0:02:22]} 13. h5 {[%clk 0:01:57]}  g5 {[%clk 0:02:04]} 14. Nd2 {[%clk 0:01:56]}  c6 {[%clk 0:01:41]} 15. f3 {[%clk 0:01:54]}  b5 {[%clk 0:01:27]} 16. Bxc5 {[%clk 0:01:24]}  dxc5 {[%clk 0:01:25]} 17. d6 {[%clk 0:01:25]}  Qxd6 {[%clk 0:01:23]} 18. cxb5 {[%clk 0:01:25]}  Be6 {[%clk 0:01:20]} 19. Nc4 {[%clk 0:01:18]}  Bxc4 {[%clk 0:01:19]} 20. Qxd6 {[%clk 0:01:16]} 1-0


[Site "https://www.chess.com"]

[Event "Titled Tuesday Blitz April 12 Early 2022"]
[White "Dilanyan, Grigor"]
[Black "Kazakouski, Valery"]
[WhiteFideId "13303570"]
[BlackFideId "13507443"]
[WhiteElo "2279"]
[BlackElo "2524"]
[Result "1/2-1/2"]
[Round "03"]
[TimeControl "180+1"]
[Date "2022.04.12"]
[WhiteClock "0:00:11"]
[BlackClock "0:00:18"]

1. e4 {[%clk 0:03:00]}  c5 {[%clk 0:02:54]} 2. Nf3 {[%clk 0:03:01]}  a6 {[%clk 0:02:55]} 3. c3 {[%clk 0:03:00]}  d5 {[%clk 0:02:55]} 4. exd5 {[%clk 0:02:56]}  Qxd5 {[%clk 0:02:56]} 5. d4 {[%clk 0:02:56]}  Bg4 {[%clk 0:02:57]} 6. Be2 {[%clk 0:02:56]}  Nf6 {[%clk 0:02:57]} 7. O-O {[%clk 0:02:55]}  e6 {[%clk 0:02:57]} 8. h3 {[%clk 0:02:55]}  Bh5 {[%clk 0:02:57]} 9. Be3 {[%clk 0:02:52]}  cxd4 {[%clk 0:02:57]} 10. cxd4 {[%clk 0:02:53]}  Nc6 {[%clk 0:02:57]} 11. Nc3 {[%clk 0:02:54]}  Qd6 {[%clk 0:02:58]} 12. Qb3 {[%clk 0:02:50]}  Qb4 {[%clk 0:02:58]} 13. Qc2 {[%clk 0:02:35]}  Be7 {[%clk 0:02:57]} 14. a3 {[%clk 0:02:35]}  Qd6 {[%clk 0:02:58]} 15. Rad1 {[%clk 0:02:35]}  O-O {[%clk 0:02:58]} 16. Ne4 {[%clk 0:02:28]}  Nxe4 {[%clk 0:02:57]} 17. Qxe4 {[%clk 0:02:29]}  Bg6 {[%clk 0:02:58]} 18. Qg4 {[%clk 0:02:27]}  Rfd8 {[%clk 0:02:57]} 19. h4 {[%clk 0:02:22]}  Bf6 {[%clk 0:02:55]} 20. Bc4 {[%clk 0:01:49]}  Ne7 {[%clk 0:02:52]} 21. Bg5 {[%clk 0:01:40]}  Bf5 {[%clk 0:02:51]} 22. Qf4 {[%clk 0:01:34]}  Qxf4 {[%clk 0:02:48]} 23. Bxf4 {[%clk 0:01:35]}  Bg4 {[%clk 0:02:49]} 24. Be2 {[%clk 0:01:32]}  Bxh4 {[%clk 0:02:42]} 25. Rfe1 {[%clk 0:01:27]}  Bf6 {[%clk 0:02:42]} 26. Bc7 {[%clk 0:01:23]}  Rd7 {[%clk 0:02:36]} 27. Ba5 {[%clk 0:01:22]}  Nc6 {[%clk 0:02:24]} 28. Bb6 {[%clk 0:01:21]}  h5 {[%clk 0:02:15]} 29. b4 {[%clk 0:01:19]}  Rc8 {[%clk 0:02:12]} 30. Rc1 {[%clk 0:01:17]}  Ne7 {[%clk 0:02:12]} 31. Rxc8+ {[%clk 0:01:17]}  Nxc8 {[%clk 0:02:13]} 32. Bc5 {[%clk 0:01:11]}  Bxf3 {[%clk 0:02:04]} 33. gxf3 {[%clk 0:01:06]}  Bxd4 {[%clk 0:02:04]} 34. Rd1 {[%clk 0:01:02]}  e5 {[%clk 0:02:05]} 35. f4 {[%clk 0:01:02]}  b6 {[%clk 0:00:51]} 36. Bxd4 {[%clk 0:01:01]}  exd4 {[%clk 0:00:49]} 37. Bxa6 {[%clk 0:00:58]}  Ne7 {[%clk 0:00:50]} 38. Be2 {[%clk 0:00:57]}  g6 {[%clk 0:00:49]} 39. a4 {[%clk 0:00:57]}  Kf8 {[%clk 0:00:25]} 40. a5 {[%clk 0:00:57]}  bxa5 {[%clk 0:00:26]} 41. bxa5 {[%clk 0:00:58]}  Rd6 {[%clk 0:00:22]} 42. a6 {[%clk 0:00:57]}  Nc6 {[%clk 0:00:23]} 43. Rc1 {[%clk 0:00:52]}  d3 {[%clk 0:00:17]} 44. Bxd3 {[%clk 0:00:25]}  Rxd3 {[%clk 0:00:18]} 45. Rxc6 {[%clk 0:00:25]}  Ra3 {[%clk 0:00:19]} 46. f5 {[%clk 0:00:16]}  g5 {[%clk 0:00:18]} 47. Kf1 {[%clk 0:00:12]}  Ra2 {[%clk 0:00:15]} 48. Rh6 {[%clk 0:00:07]}  h4 {[%clk 0:00:12]} 49. Rh5 {[%clk 0:00:04]}  Rxa6 {[%clk 0:00:05]} 50. Rxg5 {[%clk 0:00:03]}  Ra4 {[%clk 0:00:06]} 51. Kg2 {[%clk 0:00:03]}  Ke7 {[%clk 0:00:05]} 52. Rh5 {[%clk 0:00:03]}  Kf6 {[%clk 0:00:06]} 53. Kh3 {[%clk 0:00:03]}  Rf4 {[%clk 0:00:06]} 54. Rxh4 {[%clk 0:00:03]}  Rxf2 {[%clk 0:00:07]} 55. Rh5 {[%clk 0:00:03]}  Rxf5 {[%clk 0:00:06]} 56. Rh6+ {[%clk 0:00:03]}  Kg5 {[%clk 0:00:06]} 57. Ra6 {[%clk 0:00:04]}  Rf2 {[%clk 0:00:05]} 58. Kg3 {[%clk 0:00:04]}  Rb2 {[%clk 0:00:05]} 59. Ra5+ {[%clk 0:00:04]}  f5 {[%clk 0:00:06]} 60. Rc5 {[%clk 0:00:05]}  Rb3+ {[%clk 0:00:06]} 61. Kf2 {[%clk 0:00:05]}  Kg4 {[%clk 0:00:07]} 62. Rc2 {[%clk 0:00:06]}  Rh3 {[%clk 0:00:06]} 63. Kg2 {[%clk 0:00:07]}  Rg3+ {[%clk 0:00:06]} 64. Kf2 {[%clk 0:00:07]}  Rf3+ {[%clk 0:00:07]} 65. Kg2 {[%clk 0:00:07]}  Re3 {[%clk 0:00:08]} 66. Kf2 {[%clk 0:00:07]}  Kf4 {[%clk 0:00:08]} 67. Rc4+ {[%clk 0:00:07]}  Re4 {[%clk 0:00:08]} 68. Rc3 {[%clk 0:00:08]}  Ke5 {[%clk 0:00:09]} 69. Rc5+ {[%clk 0:00:08]}  Kf4 {[%clk 0:00:09]} 70. Rc3 {[%clk 0:00:08]}  Rd4 {[%clk 0:00:10]} 71. Rf3+ {[%clk 0:00:09]}  Ke5 {[%clk 0:00:11]} 72. Ra3 {[%clk 0:00:09]}  Re4 {[%clk 0:00:12]} 73. Kf3 {[%clk 0:00:09]}  Rf4+ {[%clk 0:00:12]} 74. Kg3 {[%clk 0:00:10]}  Rg4+ {[%clk 0:00:13]} 75. Kf3 {[%clk 0:00:10]}  Rb4 {[%clk 0:00:13]} 76. Ra5+ {[%clk 0:00:09]}  Kf6 {[%clk 0:00:13]} 77. Ra8 {[%clk 0:00:10]}  Rb3+ {[%clk 0:00:13]} 78. Kf4 {[%clk 0:00:10]}  Rb4+ {[%clk 0:00:14]} 79. Kf3 {[%clk 0:00:09]}  Kf7 {[%clk 0:00:15]} 80. Ra7+ {[%clk 0:00:09]}  Ke6 {[%clk 0:00:15]} 81. Ra6+ {[%clk 0:00:10]}  Ke5 {[%clk 0:00:15]} 82. Ra5+ {[%clk 0:00:10]}  Kf6 {[%clk 0:00:16]} 83. Ra6+ {[%clk 0:00:11]}  Kg5 {[%clk 0:00:16]} 84. Ra3 {[%clk 0:00:11]}  Rh4 {[%clk 0:00:16]} 85. Kg3 {[%clk 0:00:12]}  f4+ {[%clk 0:00:16]} 86. Kg2 {[%clk 0:00:12]}  Kg4 {[%clk 0:00:17]} 87. Kf2 {[%clk 0:00:13]}  Rh2+ {[%clk 0:00:17]} 88. Kg1 {[%clk 0:00:13]}  Rb2 {[%clk 0:00:18]} 89. Rc3 {[%clk 0:00:12]}  Re2 {[%clk 0:00:17]} 90. Rb3 {[%clk 0:00:12]}  Re3 {[%clk 0:00:18]} 91. Rb2 {[%clk 0:00:10]}  Kf3 {[%clk 0:00:11]} 92. Kf1 {[%clk 0:00:10]}  Rd3 {[%clk 0:00:09]} 93. Rf2+ {[%clk 0:00:09]}  Ke4 {[%clk 0:00:10]} 94. Re2+ {[%clk 0:00:09]}  Re3 {[%clk 0:00:09]} 95. Rb2 {[%clk 0:00:08]}  Ra3 {[%clk 0:00:09]} 96. Kf2 {[%clk 0:00:07]}  Rh3 {[%clk 0:00:08]} 97. Rb4+ {[%clk 0:00:08]}  Kf5 {[%clk 0:00:09]} 98. Kg2 {[%clk 0:00:06]}  Rg3+ {[%clk 0:00:09]} 99. Kf2 {[%clk 0:00:07]}  Kg4 {[%clk 0:00:10]} 100. Rb8 {[%clk 0:00:07]}  Rf3+ {[%clk 0:00:10]} 101. Kg2 {[%clk 0:00:06]}  Rg3+ {[%clk 0:00:11]} 102. Kf2 {[%clk 0:00:07]}  Rc3 {[%clk 0:00:12]} 103. Rg8+ {[%clk 0:00:07]}  Kf5 {[%clk 0:00:13]} 104. Rf8+ {[%clk 0:00:07]}  Kg5 {[%clk 0:00:14]} 105. Rg8+ {[%clk 0:00:08]}  Kf6 {[%clk 0:00:15]} 106. Rf8+ {[%clk 0:00:08]}  Ke5 {[%clk 0:00:15]} 107. Re8+ {[%clk 0:00:09]}  Kf5 {[%clk 0:00:16]} 108. Rf8+ {[%clk 0:00:09]}  Ke4 {[%clk 0:00:17]} 109. Re8+ {[%clk 0:00:10]}  Kf5 {[%clk 0:00:18]} 110. Rf8+ {[%clk 0:00:11]} 1/2-1/2


[Site "https://www.chess.com"]

[Event "Titled Tuesday Blitz April 12 Early 2022"]
[White "Dubov, Daniil"]
[Black "Ahmadzada, Ahmad"]
[WhiteFideId "24126055"]
[BlackFideId "13413007"]
[WhiteElo "2791"]
[BlackElo "2228"]
[Result "1-0"]
[Round "03"]
[TimeControl "180+1"]
[Date "2022.04.12"]
[WhiteClock "0:01:00"]
[BlackClock "0:00:07"]

1. d4 {[%clk 0:02:59]}  Nf6 {[%clk 0:02:58]} 2. Nf3 {[%clk 0:02:59]}  e6 {[%clk 0:02:56]} 3. c4 {[%clk 0:02:59]}  b6 {[%clk 0:02:56]} 4. g3 {[%clk 0:02:59]}  Bb7 {[%clk 0:02:57]} 5. Bg2 {[%clk 0:02:59]}  g6 {[%clk 0:02:57]} 6. Nc3 {[%clk 0:02:57]}  Ne4 {[%clk 0:02:57]} 7. d5 {[%clk 0:02:57]}  Nxc3 {[%clk 0:02:55]} 8. Qd4 {[%clk 0:02:54]}  f6 {[%clk 0:02:55]} 9. Qxc3 {[%clk 0:02:53]}  Bg7 {[%clk 0:02:52]} 10. O-O {[%clk 0:02:52]}  e5 {[%clk 0:02:49]} 11. e4 {[%clk 0:02:38]}  d6 {[%clk 0:02:49]} 12. b4 {[%clk 0:02:37]}  a5 {[%clk 0:02:48]} 13. a3 {[%clk 0:02:35]}  Nd7 {[%clk 0:02:48]} 14. Be3 {[%clk 0:02:26]}  O-O {[%clk 0:02:46]} 15. c5 {[%clk 0:02:25]}  axb4 {[%clk 0:02:22]} 16. axb4 {[%clk 0:02:21]}  Rxa1 {[%clk 0:02:21]} 17. Rxa1 {[%clk 0:02:20]}  bxc5 {[%clk 0:02:18]} 18. bxc5 {[%clk 0:02:19]}  Nxc5 {[%clk 0:02:18]} 19. Bxc5 {[%clk 0:02:19]}  dxc5 {[%clk 0:02:18]} 20. Ra7 {[%clk 0:02:08]}  Qb8 {[%clk 0:01:58]} 21. Qxc5 {[%clk 0:02:05]}  Qc8 {[%clk 0:01:08]} 22. Bf1 {[%clk 0:01:57]}  h6 {[%clk 0:01:01]} 23. Nh4 {[%clk 0:01:48]}  Kh7 {[%clk 0:01:01]} 24. Qb4 {[%clk 0:01:45]}  Ba8 {[%clk 0:00:57]} 25. Qe7 {[%clk 0:01:44]}  Bb7 {[%clk 0:00:47]} 26. Bh3 {[%clk 0:01:23]}  Qxh3 {[%clk 0:00:34]} 27. Rxb7 {[%clk 0:01:23]}  Ra8 {[%clk 0:00:34]} 28. Rb1 {[%clk 0:01:23]}  Qg4 {[%clk 0:00:29]} 29. Re1 {[%clk 0:01:08]}  Ra4 {[%clk 0:00:23]} 30. Kg2 {[%clk 0:01:08]}  Rc4 {[%clk 0:00:16]} 31. h3 {[%clk 0:01:00]}  Qg5 {[%clk 0:00:15]} 32. Nf3 {[%clk 0:01:00]}  Qh5 {[%clk 0:00:07]} 33. g4 {[%clk 0:01:00]} 1-0


[Site "https://www.chess.com"]

[Event "Titled Tuesday Blitz April 12 Early 2022"]
[White "Estrada Nieto, Julian"]
[Black "Zavgorodniy, Sergiy"]
[WhiteFideId "5101018"]
[BlackFideId "14110148"]
[WhiteElo "2252"]
[BlackElo "2420"]
[Result "0-1"]
[Round "03"]
[TimeControl "180+1"]
[Date "2022.04.13"]
[WhiteClock "0:00:01"]
[BlackClock "0:00:13"]

1. e4 {[%clk 0:02:57]}  e5 {[%clk 0:02:54]} 2. Nf3 {[%clk 0:02:57]}  d6 {[%clk 0:02:41]} 3. d4 {[%clk 0:02:56]}  exd4 {[%clk 0:02:35]} 4. Nxd4 {[%clk 0:02:54]}  Nf6 {[%clk 0:02:35]} 5. Nc3 {[%clk 0:02:54]}  Be7 {[%clk 0:02:35]} 6. g3 {[%clk 0:02:52]}  Bg4 {[%clk 0:02:32]} 7. f3 {[%clk 0:02:49]}  Bd7 {[%clk 0:02:30]} 8. Bg2 {[%clk 0:02:49]}  c5 {[%clk 0:02:23]} 9. Nde2 {[%clk 0:02:47]}  Bc6 {[%clk 0:02:22]} 10. O-O {[%clk 0:02:40]}  b5 {[%clk 0:02:21]} 11. Nf4 {[%clk 0:02:29]}  Nbd7 {[%clk 0:02:05]} 12. g4 {[%clk 0:02:28]}  h6 {[%clk 0:02:01]} 13. Ncd5 {[%clk 0:02:24]}  Nb6 {[%clk 0:01:35]} 14. Nxe7 {[%clk 0:02:19]}  Qxe7 {[%clk 0:01:34]} 15. b3 {[%clk 0:01:48]}  Qe5 {[%clk 0:01:21]} 16. Rb1 {[%clk 0:01:46]}  O-O {[%clk 0:01:18]} 17. Nd3 {[%clk 0:01:38]}  Qe7 {[%clk 0:01:17]} 18. g5 {[%clk 0:01:27]}  hxg5 {[%clk 0:01:15]} 19. Bxg5 {[%clk 0:01:28]}  Qe6 {[%clk 0:01:15]} 20. Qe1 {[%clk 0:01:14]}  Nh7 {[%clk 0:01:02]} 21. Be3 {[%clk 0:00:59]}  Rfe8 {[%clk 0:01:02]} 22. Qg3 {[%clk 0:00:54]}  Nf6 {[%clk 0:00:43]} 23. Rbe1 {[%clk 0:00:50]}  Nh5 {[%clk 0:00:43]} 24. Qh4 {[%clk 0:00:46]}  g6 {[%clk 0:00:43]} 25. Bf2 {[%clk 0:00:22]}  Qf6 {[%clk 0:00:41]} 26. Qxf6 {[%clk 0:00:20]}  Nxf6 {[%clk 0:00:42]} 27. e5 {[%clk 0:00:20]}  dxe5 {[%clk 0:00:41]} 28. Nxe5 {[%clk 0:00:17]}  Bd5 {[%clk 0:00:38]} 29. Bxc5 {[%clk 0:00:17]}  Rac8 {[%clk 0:00:38]} 30. b4 {[%clk 0:00:16]}  Bxa2 {[%clk 0:00:36]} 31. f4 {[%clk 0:00:12]}  Be6 {[%clk 0:00:33]} 32. Ra1 {[%clk 0:00:10]}  Na4 {[%clk 0:00:32]} 33. Bd6 {[%clk 0:00:06]}  Rxc2 {[%clk 0:00:32]} 34. Rac1 {[%clk 0:00:05]}  Rec8 {[%clk 0:00:31]} 35. Rxc2 {[%clk 0:00:04]}  Rxc2 {[%clk 0:00:32]} 36. f5 {[%clk 0:00:04]}  Bxf5 {[%clk 0:00:30]} 37. Nf3 {[%clk 0:00:04]}  Nd5 {[%clk 0:00:27]} 38. Be5 {[%clk 0:00:04]}  Rxg2+ {[%clk 0:00:26]} 39. Kxg2 {[%clk 0:00:04]}  Ne3+ {[%clk 0:00:27]} 40. Kf2 {[%clk 0:00:04]}  Nxf1 {[%clk 0:00:28]} 41. Kxf1 {[%clk 0:00:05]}  Bd3+ {[%clk 0:00:25]} 42. Kf2 {[%clk 0:00:05]}  a6 {[%clk 0:00:25]} 43. Ke3 {[%clk 0:00:05]}  Bc4 {[%clk 0:00:25]} 44. Kd4 {[%clk 0:00:05]}  Nb6 {[%clk 0:00:25]} 45. Kc5 {[%clk 0:00:05]}  Nd5 {[%clk 0:00:25]} 46. Kd6 {[%clk 0:00:05]}  f6 {[%clk 0:00:25]} 47. Bd4 {[%clk 0:00:05]}  Kf7 {[%clk 0:00:25]} 48. Bc5 {[%clk 0:00:04]}  g5 {[%clk 0:00:23]} 49. Kc6 {[%clk 0:00:04]}  g4 {[%clk 0:00:22]} 50. Nd4 {[%clk 0:00:05]}  Kg6 {[%clk 0:00:21]} 51. Kb7 {[%clk 0:00:05]}  f5 {[%clk 0:00:20]} 52. Kxa6 {[%clk 0:00:04]}  f4 {[%clk 0:00:21]} 53. Kb7 {[%clk 0:00:04]}  f3 {[%clk 0:00:21]} 54. Ne6 {[%clk 0:00:03]}  Kf5 {[%clk 0:00:18]} 55. Ng7+ {[%clk 0:00:03]}  Ke4 {[%clk 0:00:17]} 56. Nh5 {[%clk 0:00:02]}  Kd3 {[%clk 0:00:16]} 57. Ng3 {[%clk 0:00:02]}  Kc3 {[%clk 0:00:15]} 58. Kc6 {[%clk 0:00:02]}  Nxb4+ {[%clk 0:00:15]} 59. Kd6 {[%clk 0:00:02]}  Nd3 {[%clk 0:00:15]} 60. Bb6 {[%clk 0:00:01]}  b4 {[%clk 0:00:15]} 61. Nf5 {[%clk 0:00:01]}  f2 {[%clk 0:00:14]} 62. Ne3 {[%clk 0:00:01]}  b3 {[%clk 0:00:13]} 0-1


[Site "https://www.chess.com"]

[Event "Titled Tuesday Blitz April 12 Early 2022"]
[White "Eynullayev, Atilla"]
[Black "Zanette, Edgard Vinicius"]
[WhiteFideId "13413570"]
[BlackFideId "2109263"]
[WhiteElo "1936"]
[BlackElo "2182"]
[Result "1-0"]
[Round "03"]
[TimeControl "180+1"]
[Date "2022.04.13"]
[WhiteClock "0:01:05"]
[BlackClock "0:00:14"]

1. e4 {[%clk 0:03:00]}  c5 {[%clk 0:02:57]} 2. Nf3 {[%clk 0:03:01]}  d6 {[%clk 0:02:58]} 3. d4 {[%clk 0:03:01]}  cxd4 {[%clk 0:02:59]} 4. Nxd4 {[%clk 0:03:01]}  Nf6 {[%clk 0:02:59]} 5. Nc3 {[%clk 0:03:02]}  a6 {[%clk 0:03:00]} 6. Be2 {[%clk 0:03:02]}  e5 {[%clk 0:03:00]} 7. Nb3 {[%clk 0:03:02]}  Be6 {[%clk 0:02:59]} 8. Be3 {[%clk 0:03:03]}  Be7 {[%clk 0:02:59]} 9. Nd5 {[%clk 0:03:03]}  Nxd5 {[%clk 0:02:51]} 10. exd5 {[%clk 0:03:03]}  Bf5 {[%clk 0:02:52]} 11. O-O {[%clk 0:03:04]}  O-O {[%clk 0:02:48]} 12. Qd2 {[%clk 0:03:04]}  Nd7 {[%clk 0:02:46]} 13. Na5 {[%clk 0:03:03]}  Qc7 {[%clk 0:02:41]} 14. c4 {[%clk 0:03:04]}  Bg6 {[%clk 0:02:26]} 15. b4 {[%clk 0:03:04]}  f5 {[%clk 0:02:23]} 16. f3 {[%clk 0:03:05]}  Rac8 {[%clk 0:02:08]} 17. Rfc1 {[%clk 0:02:59]}  f4 {[%clk 0:01:29]} 18. Bf2 {[%clk 0:02:59]}  e4 {[%clk 0:01:27]} 19. fxe4 {[%clk 0:02:56]}  Bxe4 {[%clk 0:01:23]} 20. Bg4 {[%clk 0:02:57]}  Bf6 {[%clk 0:01:11]} 21. Bd4 {[%clk 0:02:49]}  Ne5 {[%clk 0:01:05]} 22. Bxc8 {[%clk 0:02:43]}  Qxc8 {[%clk 0:01:05]} 23. Re1 {[%clk 0:02:44]}  Bg6 {[%clk 0:00:56]} 24. Rf1 {[%clk 0:02:12]}  f3 {[%clk 0:00:33]} 25. Bxe5 {[%clk 0:01:37]}  Bxe5 {[%clk 0:00:32]} 26. Rae1 {[%clk 0:01:37]}  fxg2 {[%clk 0:00:32]} 27. Qxg2 {[%clk 0:01:37]}  Bf5 {[%clk 0:00:29]} 28. c5 {[%clk 0:01:28]}  Rd8 {[%clk 0:00:22]} 29. Nxb7 {[%clk 0:01:17]}  Bh3 {[%clk 0:00:19]} 30. Qg5 {[%clk 0:01:07]}  Bxf1 {[%clk 0:00:18]} 31. Qxd8+ {[%clk 0:01:05]}  Qxd8 {[%clk 0:00:17]} 32. Nxd8 {[%clk 0:01:06]}  Bc4 {[%clk 0:00:15]} 33. Rxe5 {[%clk 0:01:05]}  dxe5 {[%clk 0:00:14]} 34. c6 {[%clk 0:01:05]} 1-0


[Site "https://www.chess.com"]

[Event "Titled Tuesday Blitz April 12 Early 2022"]
[White "Fernandez Siles, Luis"]
[Black "Myshakov, Fyodor"]
[WhiteFideId "2209420"]
[BlackFideId "14111284"]
[WhiteElo "2212"]
[BlackElo "2310"]
[Result "0-1"]
[Round "03"]
[TimeControl "180+1"]
[Date "2022.04.13"]
[WhiteClock "0:01:28"]
[BlackClock "0:02:00"]

1. e4 {[%clk 0:03:00]}  c6 {[%clk 0:02:58]} 2. d4 {[%clk 0:03:00]}  d5 {[%clk 0:02:59]} 3. e5 {[%clk 0:02:59]}  Bf5 {[%clk 0:03:00]} 4. h4 {[%clk 0:02:58]}  h5 {[%clk 0:03:00]} 5. Bd3 {[%clk 0:02:57]}  Bxd3 {[%clk 0:02:59]} 6. Qxd3 {[%clk 0:02:58]}  e6 {[%clk 0:02:59]} 7. Bg5 {[%clk 0:02:58]}  Be7 {[%clk 0:02:59]} 8. Nf3 {[%clk 0:02:58]}  Nd7 {[%clk 0:02:59]} 9. Nbd2 {[%clk 0:02:56]}  Qb6 {[%clk 0:02:58]} 10. b3 {[%clk 0:02:55]}  O-O-O {[%clk 0:02:56]} 11. c4 {[%clk 0:02:50]}  f6 {[%clk 0:02:56]} 12. exf6 {[%clk 0:02:45]}  gxf6 {[%clk 0:02:57]} 13. Bf4 {[%clk 0:02:41]}  e5 {[%clk 0:02:44]} 14. dxe5 {[%clk 0:02:37]}  fxe5 {[%clk 0:02:44]} 15. Nxe5 {[%clk 0:02:32]}  Bf6 {[%clk 0:02:39]} 16. Ndf3 {[%clk 0:02:24]}  Qb4+ {[%clk 0:02:24]} 17. Kf1 {[%clk 0:02:21]}  Ne7 {[%clk 0:02:23]} 18. Re1 {[%clk 0:02:13]}  dxc4 {[%clk 0:02:19]} 19. bxc4 {[%clk 0:02:12]}  Nxe5 {[%clk 0:02:17]} 20. Qe4 {[%clk 0:01:48]}  Qxc4+ {[%clk 0:02:10]} 21. Qxc4 {[%clk 0:01:44]}  Nxc4 {[%clk 0:02:11]} 22. Ng5 {[%clk 0:01:37]}  Nd5 {[%clk 0:02:05]} 23. Bc1 {[%clk 0:01:30]}  Rde8 {[%clk 0:02:01]} 24. Rxe8+ {[%clk 0:01:28]}  Rxe8 {[%clk 0:02:00]} 0-1


[Site "https://www.chess.com"]